Workbook

Sheet Sheet1
A1: pi | B1: volts in | C1: capacitor | D1: resistor | E1: frequency | F1: Xc | G1: volts out
A2: 3.141592654 | B2: 5 | C2: =100/1000000000 -> 1e-07 | D2: 200 | E2: 1 | F2: =1/(2*A2*E2*C2) -> 1591549.431 | G2: =+B2*F2/SQRT((D2*D2)+(F2*F2)) -> 4.999999961
A3: 3.141592654 | B3: 5 | C3: =+C2 -> 1e-07 | D3: =+D2 -> 200 | E3: 500 | F3: =1/(2*A3*E3*C3) -> 3183.098862 | G3: =+B3*F3/SQRT((D3*D3)+(F3*F3)) -> 4.990159523
A4: 3.141592654 | B4: 5 | C4: =+C2 -> 1e-07 | D4: =+D2 -> 200 | E4: =+E3+500 -> 1000 | F4: =1/(2*A4*E4*C4) -> 1591.549431 | G4: =+B4*F4/SQRT((D4*D4)+(F4*F4)) -> 4.960983077
A5: 3.141592654 | B5: 5 | C5: =+C2 -> 1e-07 | D5: =+D2 -> 200 | E5: =+E4+500 -> 1500 | F5: =1/(2*A5*E5*C5) -> 1061.032954 | G5: =+B5*F5/SQRT((D5*D5)+(F5*F5)) -> 4.913472627
A6: 3.141592654 | B6: 5 | C6: =+C2 -> 1e-07 | D6: =+D2 -> 200 | E6: =+E5+500 -> 2000 | F6: =1/(2*A6*E6*C6) -> 795.7747155 | G6: =+B6*F6/SQRT((D6*D6)+(F6*F6)) -> 4.849194158
A7: 3.141592654 | B7: 5 | C7: =+C2 -> 1e-07 | D7: =+D2 -> 200 | E7: =+E6+500 -> 2500 | F7: =1/(2*A7*E7*C7) -> 636.6197724 | G7: =+B7*F7/SQRT((D7*D7)+(F7*F7)) -> 4.770141082
A8: 3.141592654 | B8: 5 | C8: =+C2 -> 1e-07 | D8: =+D2 -> 200 | E8: =+E7+500 -> 3000 | F8: =1/(2*A8*E8*C8) -> 530.516477 | G8: =+B8*F8/SQRT((D8*D8)+(F8*F8)) -> 4.678576101
A9: 3.141592654 | B9: 5 | C9: =+C2 -> 1e-07 | D9: =+D2 -> 200 | E9: =+E8+500 -> 3500 | F9: =1/(2*A9*E9*C9) -> 454.7284088 | G9: =+B9*F9/SQRT((D9*D9)+(F9*F9)) -> 4.576873792
A10: 3.141592654 | B10: 5 | C10: =+C2 -> 1e-07 | D10: =+D2 -> 200 | E10: =+E9+500 -> 4000 | F10: =1/(2*A10*E10*C10) -> 397.8873577 | G10: =+B10*F10/SQRT((D10*D10)+(F10*F10)) -> 4.467381844
A11: 3.141592654 | B11: 5 | C11: =+C2 -> 1e-07 | D11: =+D2 -> 200 | E11: =+E10+500 -> 4500 | F11: =1/(2*A11*E11*C11) -> 353.6776513 | G11: =+B11*F11/SQRT((D11*D11)+(F11*F11)) -> 4.352312049
A12: 3.141592654 | B12: 5 | C12: =+C2 -> 1e-07 | D12: =+D2 -> 200 | E12: =+E11+500 -> 5000 | F12: =1/(2*A12*E12*C12) -> 318.3098862 | G12: =+B12*F12/SQRT((D12*D12)+(F12*F12)) -> 4.23366508
A13: 3.141592654 | B13: 5 | C13: =+C3 -> 1e-07 | D13: =+D3 -> 200 | E13: =+E12+500 -> 5500 | F13: =1/(2*A13*E13*C13) -> 289.3726238 | G13: =+B13*F13/SQRT((D13*D13)+(F13*F13)) -> 4.113187485
A14: 3.141592654 | B14: 5 | C14: =+C4 -> 1e-07 | D14: =+D4 -> 200 | E14: =+E13+500 -> 6000 | F14: =1/(2*A14*E14*C14) -> 265.2582385 | G14: =+B14*F14/SQRT((D14*D14)+(F14*F14)) -> 3.992355775
A15: 3.141592654 | B15: 5 | C15: =+C5 -> 1e-07 | D15: =+D5 -> 200 | E15: =+E14+500 -> 6500 | F15: =1/(2*A15*E15*C15) -> 244.8537586 | G15: =+B15*F15/SQRT((D15*D15)+(F15*F15)) -> 3.872380939
A16: 3.141592654 | B16: 5 | C16: =+C6 -> 1e-07 | D16: =+D6 -> 200 | E16: =+E15+500 -> 7000 | F16: =1/(2*A16*E16*C16) -> 227.3642044 | G16: =+B16*F16/SQRT((D16*D16)+(F16*F16)) -> 3.754226721
A17: 3.141592654 | B17: 5 | C17: =+C7 -> 1e-07 | D17: =+D7 -> 200 | E17: =+E16+500 -> 7500 | F17: =1/(2*A17*E17*C17) -> 212.2065908 | G17: =+B17*F17/SQRT((D17*D17)+(F17*F17)) -> 3.638635917
A18: 3.141592654 | B18: 5 | C18: =+C8 -> 1e-07 | D18: =+D8 -> 200 | E18: =+E17+500 -> 8000 | F18: =1/(2*A18*E18*C18) -> 198.9436789 | G18: =+B18*F18/SQRT((D18*D18)+(F18*F18)) -> 3.526160176
A19: 3.141592654 | B19: 5 | C19: =+C9 -> 1e-07 | D19: =+D9 -> 200 | E19: =+E18+500 -> 8500 | F19: =1/(2*A19*E19*C19) -> 187.2411095 | G19: =+B19*F19/SQRT((D19*D19)+(F19*F19)) -> 3.417190174
A20: 3.141592654 | B20: 5 | C20: =+C10 -> 1e-07 | D20: =+D10 -> 200 | E20: =+E19+500 -> 9000 | F20: =1/(2*A20*E20*C20) -> 176.8388257 | G20: =+B20*F20/SQRT((D20*D20)+(F20*F20)) -> 3.311984108
A21: 3.141592654 | B21: 5 | C21: =+C11 -> 1e-07 | D21: =+D11 -> 200 | E21: =+E20+500 -> 9500 | F21: =1/(2*A21*E21*C21) -> 167.531519 | G21: =+B21*F21/SQRT((D21*D21)+(F21*F21)) -> 3.210693378
A22: 3.141592654 | B22: 5 | C22: =+C12 -> 1e-07 | D22: =+D12 -> 200 | E22: =+E21+500 -> 10000 | F22: =1/(2*A22*E22*C22) -> 159.1549431 | G22: =+B22*F22/SQRT((D22*D22)+(F22*F22)) -> 3.113384961
A23: 3.141592654 | B23: 5 | C23: =+C22 -> 1e-07 | D23: =+D12 -> 200 | E23: =+E22+500 -> 10500 | F23: =1/(2*A23*E23*C23) -> 151.5761363 | G23: =+B23*F23/SQRT((D23*D23)+(F23*F23)) -> 3.020060394
A24: 3.141592654 | B24: 5 | C24: =+C23 -> 1e-07 | D24: =+D23 -> 200 | E24: =+E23+500 -> 11000 | F24: =1/(2*A24*E24*C24) -> 144.6863119 | G24: =+B24*F24/SQRT((D24*D24)+(F24*F24)) -> 2.930671544
A25: 3.141592654 | B25: 5 | C25: =+C23 -> 1e-07 | D25: =+D23 -> 200 | E25: =+E24+500 -> 11500 | F25: =1/(2*A25*E25*C25) -> 138.3956027 | G25: =+B25*F25/SQRT((D25*D25)+(F25*F25)) -> 2.845133501
A26: 3.141592654 | B26: 5 | C26: =+C23 -> 1e-07 | D26: =+D23 -> 200 | E26: =+E25+500 -> 12000 | F26: =1/(2*A26*E26*C26) -> 132.6291192 | G26: =+B26*F26/SQRT((D26*D26)+(F26*F26)) -> 2.763334941
A27: 3.141592654 | B27: 5 | C27: =+C23 -> 1e-07 | D27: =+D23 -> 200 | E27: =+E26+500 -> 12500 | F27: =1/(2*A27*E27*C27) -> 127.3239545 | G27: =+B27*F27/SQRT((D27*D27)+(F27*F27)) -> 2.685146361
A28: 3.141592654 | B28: 5 | C28: =+C23 -> 1e-07 | D28: =+D23 -> 200 | E28: =+E27+500 -> 13000 | F28: =1/(2*A28*E28*C28) -> 122.4268793 | G28: =+B28*F28/SQRT((D28*D28)+(F28*F28)) -> 2.610426538
A29: 3.141592654 | B29: 5 | C29: =+C23 -> 1e-07 | D29: =+D23 -> 200 | E29: =+E28+500 -> 13500 | F29: =1/(2*A29*E29*C29) -> 117.8925504 | G29: =+B29*F29/SQRT((D29*D29)+(F29*F29)) -> 2.53902753
A30: 3.141592654 | B30: 5 | C30: =+C23 -> 1e-07 | D30: =+D23 -> 200 | E30: =+E29+500 -> 14000 | F30: =1/(2*A30*E30*C30) -> 113.6821022 | G30: =+B30*F30/SQRT((D30*D30)+(F30*F30)) -> 2.470798492
A31: 3.141592654 | B31: 5 | C31: =+C23 -> 1e-07 | D31: =+D23 -> 200 | E31: =+E30+500 -> 14500 | F31: =1/(2*A31*E31*C31) -> 109.7620297 | G31: =+B31*F31/SQRT((D31*D31)+(F31*F31)) -> 2.405588557
A32: 3.141592654 | B32: 5 | C32: =+C23 -> 1e-07 | D32: =+D23 -> 200 | E32: =+E31+500 -> 15000 | F32: =1/(2*A32*E32*C32) -> 106.1032954 | G32: =+B32*F32/SQRT((D32*D32)+(F32*F32)) -> 2.343248959
A33: 3.141592654 | B33: 5 | C33: =+C23 -> 1e-07 | D33: =+D23 -> 200 | E33: =+E32+500 -> 15500 | F33: =1/(2*A33*E33*C33) -> 102.6806084 | G33: =+B33*F33/SQRT((D33*D33)+(F33*F33)) -> 2.283634573
A34: 3.141592654 | B34: 5 | C34: =+C24 -> 1e-07 | D34: =+D24 -> 200 | E34: =+E33+500 -> 16000 | F34: =1/(2*A34*E34*C34) -> 99.47183943 | G34: =+B34*F34/SQRT((D34*D34)+(F34*F34)) -> 2.226604984
A35: 3.141592654 | B35: 5 | C35: =+C25 -> 1e-07 | D35: =+D25 -> 200 | E35: =+E34+500 -> 16500 | F35: =1/(2*A35*E35*C35) -> 96.45754127 | G35: =+B35*F35/SQRT((D35*D35)+(F35*F35)) -> 2.172025213
A36: 3.141592654 | B36: 5 | C36: =+C26 -> 1e-07 | D36: =+D26 -> 200 | E36: =+E35+500 -> 17000 | F36: =1/(2*A36*E36*C36) -> 93.62055476 | G36: =+B36*F36/SQRT((D36*D36)+(F36*F36)) -> 2.119766157 | I36: Optimum for 10KHz is 100nF capacitor (in parallel) and 200 ohm resistor (in series).
A37: 3.141592654 | B37: 5 | C37: =+C27 -> 1e-07 | D37: =+D27 -> 200 | E37: =+E36+500 -> 17500 | F37: =1/(2*A37*E37*C37) -> 90.94568177 | G37: =+B37*F37/SQRT((D37*D37)+(F37*F37)) -> 2.069704829
A38: 3.141592654 | B38: 5 | C38: =+C28 -> 1e-07 | D38: =+D28 -> 200 | E38: =+E37+500 -> 18000 | F38: =1/(2*A38*E38*C38) -> 88.41941283 | G38: =+B38*F38/SQRT((D38*D38)+(F38*F38)) -> 2.021724438
A39: 3.141592654 | B39: 5 | C39: =+C29 -> 1e-07 | D39: =+D29 -> 200 | E39: =+E38+500 -> 18500 | F39: =1/(2*A39*E39*C39) -> 86.02969897 | G39: =+B39*F39/SQRT((D39*D39)+(F39*F39)) -> 1.975714357
A40: 3.141592654 | B40: 5 | C40: =+C30 -> 1e-07 | D40: =+D30 -> 200 | E40: =+E39+500 -> 19000 | F40: =1/(2*A40*E40*C40) -> 83.76575952 | G40: =+B40*F40/SQRT((D40*D40)+(F40*F40)) -> 1.931570001
A41: 3.141592654 | B41: 5 | C41: =+C31 -> 1e-07 | D41: =+D31 -> 200 | E41: =+E40+500 -> 19500 | F41: =1/(2*A41*E41*C41) -> 81.61791953 | G41: =+B41*F41/SQRT((D41*D41)+(F41*F41)) -> 1.889192651
A42: 3.141592654 | B42: 5 | C42: =+C32 -> 1e-07 | D42: =+D32 -> 200 | E42: =+E41+500 -> 20000 | F42: =1/(2*A42*E42*C42) -> 79.57747155 | G42: =+B42*F42/SQRT((D42*D42)+(F42*F42)) -> 1.848489238
A43: 3.141592654 | B43: 5 | C43: =+C42 -> 1e-07 | D43: =+D32 -> 200 | E43: =+E42+500 -> 20500 | F43: =1/(2*A43*E43*C43) -> 77.63655761 | G43: =+B43*F43/SQRT((D43*D43)+(F43*F43)) -> 1.809372094
A44: 3.141592654 | B44: 5 | C44: =+C43 -> 1e-07 | D44: =+D43 -> 200 | E44: =+E43+500 -> 21000 | F44: =1/(2*A44*E44*C44) -> 75.78806814 | G44: =+B44*F44/SQRT((D44*D44)+(F44*F44)) -> 1.771758697
A45: 3.141592654 | B45: 5 | C45: =+C43 -> 1e-07 | D45: =+D43 -> 200 | E45: =+E44+500 -> 21500 | F45: =1/(2*A45*E45*C45) -> 74.02555493 | G45: =+B45*F45/SQRT((D45*D45)+(F45*F45)) -> 1.735571401
A46: 3.141592654 | B46: 5 | C46: =+C43 -> 1e-07 | D46: =+D43 -> 200 | E46: =+E45+500 -> 22000 | F46: =1/(2*A46*E46*C46) -> 72.34315595 | G46: =+B46*F46/SQRT((D46*D46)+(F46*F46)) -> 1.700737172
A47: 3.141592654 | B47: 5 | C47: =+C43 -> 1e-07 | D47: =+D43 -> 200 | E47: =+E46+500 -> 22500 | F47: =1/(2*A47*E47*C47) -> 70.73553026 | G47: =+B47*F47/SQRT((D47*D47)+(F47*F47)) -> 1.667187321
A48: 3.141592654 | B48: 5 | C48: =+C43 -> 1e-07 | D48: =+D43 -> 200 | E48: =+E47+500 -> 23000 | F48: =1/(2*A48*E48*C48) -> 69.19780134 | G48: =+B48*F48/SQRT((D48*D48)+(F48*F48)) -> 1.63485725
A49: 3.141592654 | B49: 5 | C49: =+C43 -> 1e-07 | D49: =+D43 -> 200 | E49: =+E48+500 -> 23500 | F49: =1/(2*A49*E49*C49) -> 67.7255077 | G49: =+B49*F49/SQRT((D49*D49)+(F49*F49)) -> 1.603686202
A50: 3.141592654 | B50: 5 | C50: =+C43 -> 1e-07 | D50: =+D43 -> 200 | E50: =+E49+500 -> 24000 | F50: =1/(2*A50*E50*C50) -> 66.31455962 | G50: =+B50*F50/SQRT((D50*D50)+(F50*F50)) -> 1.573617024
A51: 3.141592654 | B51: 5 | C51: =+C43 -> 1e-07 | D51: =+D43 -> 200 | E51: =+E50+500 -> 24500 | F51: =1/(2*A51*E51*C51) -> 64.96120126 | G51: =+B51*F51/SQRT((D51*D51)+(F51*F51)) -> 1.544595945
A52: 3.141592654 | B52: 5 | C52: =+C43 -> 1e-07 | D52: =+D43 -> 200 | E52: =+E51+500 -> 25000 | F52: =1/(2*A52*E52*C52) -> 63.66197724 | G52: =+B52*F52/SQRT((D52*D52)+(F52*F52)) -> 1.516572355
A53: 3.141592654 | B53: 5 | C53: =+C43 -> 1e-07 | D53: =+D43 -> 200 | E53: =+E52+500 -> 25500 | F53: =1/(2*A53*E53*C53) -> 62.41370317 | G53: =+B53*F53/SQRT((D53*D53)+(F53*F53)) -> 1.489498609
A54: 3.141592654 | B54: 5 | C54: =+C44 -> 1e-07 | D54: =+D44 -> 200 | E54: =+E53+500 -> 26000 | F54: =1/(2*A54*E54*C54) -> 61.21343965 | G54: =+B54*F54/SQRT((D54*D54)+(F54*F54)) -> 1.463329834
A55: 3.141592654 | B55: 5 | C55: =+C45 -> 1e-07 | D55: =+D45 -> 200 | E55: =+E54+500 -> 26500 | F55: =1/(2*A55*E55*C55) -> 60.05846909 | G55: =+B55*F55/SQRT((D55*D55)+(F55*F55)) -> 1.438023751
A56: 3.141592654 | B56: 5 | C56: =+C46 -> 1e-07 | D56: =+D46 -> 200 | E56: =+E55+500 -> 27000 | F56: =1/(2*A56*E56*C56) -> 58.94627522 | G56: =+B56*F56/SQRT((D56*D56)+(F56*F56)) -> 1.413540506
A57: 3.141592654 | B57: 5 | C57: =+C47 -> 1e-07 | D57: =+D47 -> 200 | E57: =+E56+500 -> 27500 | F57: =1/(2*A57*E57*C57) -> 57.87452476 | G57: =+B57*F57/SQRT((D57*D57)+(F57*F57)) -> 1.389842517
A58: 3.141592654 | B58: 5 | C58: =+C48 -> 1e-07 | D58: =+D48 -> 200 | E58: =+E57+500 -> 28000 | F58: =1/(2*A58*E58*C58) -> 56.8410511 | G58: =+B58*F58/SQRT((D58*D58)+(F58*F58)) -> 1.366894325
A59: 3.141592654 | B59: 5 | C59: =+C49 -> 1e-07 | D59: =+D49 -> 200 | E59: =+E58+500 -> 28500 | F59: =1/(2*A59*E59*C59) -> 55.84383968 | G59: =+B59*F59/SQRT((D59*D59)+(F59*F59)) -> 1.34466246
A60: 3.141592654 | B60: 5 | C60: =+C50 -> 1e-07 | D60: =+D50 -> 200 | E60: =+E59+500 -> 29000 | F60: =1/(2*A60*E60*C60) -> 54.88101486 | G60: =+B60*F60/SQRT((D60*D60)+(F60*F60)) -> 1.323115308
A61: 3.141592654 | B61: 5 | C61: =+C51 -> 1e-07 | D61: =+D51 -> 200 | E61: =+E60+500 -> 29500 | F61: =1/(2*A61*E61*C61) -> 53.95082817 | G61: =+B61*F61/SQRT((D61*D61)+(F61*F61)) -> 1.302223
A62: 3.141592654 | B62: 5 | C62: =+C52 -> 1e-07 | D62: =+D52 -> 200 | E62: =+E61+500 -> 30000 | F62: =1/(2*A62*E62*C62) -> 53.0516477 | G62: =+B62*F62/SQRT((D62*D62)+(F62*F62)) -> 1.281957295

Sheet Sheet2

Sheet Sheet3
